fUST/lending_fUST_20250725
["ID","MTS","AMOUNT","RATE_DAILY","PERIOD"]
[374715477,1753426241952,-460.0,0.00017299,2]
[374715480,1753426241964,-460.0,0.00017299,2]
[374715482,1753426241974,-460.0,0.00017299,2]
[374715484,1753426241983,-460.0,0.00017299,2]
[374715485,1753426241994,-460.0,0.00017299,2]
[374715487,1753426242003,-460.0,0.000173,2]
[374715489,1753426242013,-460.0,0.000173,2]
[374715491,1753426242023,-523.33218854,0.000173,2]
[374715493,1753426242032,-460.0,0.000173,2]
[374715495,1753426242042,-327.46972,0.000173,2]
[374715497,1753426242051,-460.0,0.000173,2]
[374715499,1753426242060,-460.0,0.000173,2]
[374715501,1753426242070,-460.0,0.000173,2]
[374715503,1753426242079,-460.0,0.000173,2]
[374715505,1753426242088,-460.0,0.000173,2]
[374715507,1753426242098,-460.0,0.000173,2]
[374715509,1753426242108,-460.0,0.000173,2]
[374715511,1753426242117,-460.0,0.000173,2]
[374715513,1753426242127,-460.0,0.000173,2]
[374715515,1753426242137,-460.0,0.000173,2]
[374715517,1753426242146,-523.96,0.000173,2]
[374715519,1753426242155,-460.0,0.000173,2]
[374715521,1753426242166,-460.0,0.000173,2]
[374715523,1753426242175,-460.0,0.000173,2]
[374715525,1753426242185,-460.0,0.000173,2]
[374715527,1753426242195,-460.0,0.000173,2]
[374715529,1753426242206,-460.0,0.000173,2]
[374715531,1753426242215,-460.0,0.000173,2]
[374715533,1753426242224,-460.0,0.000173,2]
[374715535,1753426242234,-460.0,0.000173,2]
[374715537,1753426242244,-460.0,0.000173,2]
[374715539,1753426242254,-460.0,0.000173,2]
[374715541,1753426242264,-460.0,0.000173,2]
[374715543,1753426242277,-460.0,0.000173,2]
[374715545,1753426242287,-477.91237632,0.000173,2]
[374715547,1753426242296,-460.0,0.000173,2]
[374715549,1753426242305,-390.28374683,0.000173,2]
[374715551,1753426242316,-460.0,0.000173,2]
[374715553,1753426242326,-460.0,0.000173,2]
[374715555,1753426242336,-460.0,0.00017302,2]
[374715557,1753426242345,-483.29390257,0.00017302,2]
[374715559,1753426242355,-460.0,0.00017302,2]
[374715561,1753426242365,-460.0,0.00017302,2]
[374715563,1753426242375,-462.642312,0.00017302,2]
[374715565,1753426242384,-460.0,0.00017302,2]
[374715567,1753426242394,-460.0,0.00017302,2]
[374715569,1753426242403,-460.0,0.00017302,2]
[374715571,1753426242413,-460.0,0.00017302,2]
[374715573,1753426242423,-460.0,0.00017302,2]
[374715575,1753426242432,-460.0,0.00017302,2]
[374715577,1753426242442,-460.0,0.00017302,2]
[374715579,1753426242452,-460.0,0.00017302,2]
[374715581,1753426242463,-460.0,0.00017302,2]
[374715583,1753426242472,-460.0,0.00017302,2]
[374715585,1753426242482,-460.0,0.00017302,2]
[374715588,1753426242492,-460.0,0.00017302,2]
[374715589,1753426242502,-460.0,0.00017302,2]
[374715592,1753426242513,-461.35433188,0.00017302,2]
[374715593,1753426242522,-464.5817107,0.00017302,2]
[374715594,1753426242532,-521.72,0.00017302,2]
[374715595,1753426242541,-529.52277159,0.00017302,2]
[374715596,1753426242551,-460.0,0.00017302,2]
[374715597,1753426242560,-460.0,0.00017302,2]
[374715598,1753426242569,-460.0,0.00017302,2]
[374715599,1753426242578,-464.73495248,0.00017302,2]
[374715600,1753426242587,-460.0,0.00017302,2]
[374715601,1753426242597,-420.41015028,0.00017302,2]
[374715602,1753426242607,-460.0,0.00017302,2]
[374715603,1753426242616,-530.52,0.00017302,2]
[374715604,1753426242625,-460.0,0.00017302,2]
[374715605,1753426242635,-460.0,0.00017302,2]
[374715606,1753426242645,-460.0,0.00017302,2]
[374715608,1753426242654,-460.0,0.00017302,2]
[374715610,1753426242663,-460.0,0.00017304,2]
[374715611,1753426242672,-460.0,0.00017304,2]
[374715612,1753426242681,-460.0,0.00017304,2]
[374715613,1753426242691,-460.0,0.00017304,2]
[374715614,1753426242700,-194.47,0.00017304,2]
[374715615,1753426242709,-460.0,0.00017304,2]
[374715616,1753426242719,-460.0,0.00017304,2]
[374715617,1753426242731,-460.0,0.00017305,2]
[374715619,1753426242742,-460.0,0.00017305,2]
[374715620,1753426242752,-460.0,0.00017306,2]
[374715621,1753426242761,-460.0,0.00017306,2]
[374715623,1753426242770,-460.0,0.00017306,2]
[374715625,1753426242779,-460.0,0.00017306,2]
[374715627,1753426242789,-460.0,0.00017306,2]
[374715629,1753426242798,-513.52,0.00017306,2]
[374715631,1753426242808,-460.0,0.00017306,2]
[374715633,1753426242817,-460.0,0.00017306,2]
[374715635,1753426242826,-352.70812028,0.00017306,2]
[374715637,1753426242835,-460.0,0.00017306,2]
[374715639,1753426242844,-460.0,0.00017306,2]
[374715641,1753426242854,-460.0,0.00017306,2]
[374715642,1753426242863,-103.54474487,0.00017306,2]
[374715643,1753426242956,-356.45525513,0.00017306,2]
[374715644,1753426242966,-460.0,0.00017306,2]
[374715645,1753426242975,-498.0,0.00017306,2]
[374715647,1753426242985,-157.41819459,0.00017306,2]
[374715649,1753426242995,-25.8188223,0.00017306,2]
[374715651,1753426243007,-434.1811777,0.00017306,2]
[374715653,1753426243017,-218.47491681,0.00017306,2]
[374715655,1753426243030,-241.52508319,0.00017306,2]
[374715657,1753426243039,-460.0,0.00017306,2]
[374715659,1753426243049,-460.0,0.00017306,2]
[374715661,1753426243059,-399.13299225,0.00017306,2]
[374715664,1753426243070,-61.51300161,0.00017306,2]
[374715666,1753426243080,-460.0,0.00017306,2]
[374715667,1753426243089,-460.0,0.00017306,2]
[374715670,1753426243099,-460.0,0.00017306,2]
[374715671,1753426243109,-460.0,0.00017306,2]
[374715674,1753426243119,-365.40058302,0.00017306,2]
[374715681,1753426243183,-460.0,0.00017023,2]
[374715683,1753426243192,-460.0,0.00017028,2]
[374715685,1753426243202,-253.76831532,0.00017297,2]
[374715687,1753426243213,-206.23168468,0.00017297,2]
[374715689,1753426243222,-94.59941698,0.00017306,2]
[374715691,1753426243232,-460.0,0.00017306,2]
[374715693,1753426243242,-460.0,0.00017306,2]
[374715695,1753426243252,-460.0,0.00017306,2]
[374715697,1753426243261,-460.0,0.00017306,2]
[374715699,1753426243271,-460.0,0.00017307,2]
[374715701,1753426243280,-460.0,0.00017307,2]
[374715703,1753426243289,-460.0,0.00017307,2]
[374715705,1753426243299,-460.0,0.00017307,2]
[374715707,1753426243309,-460.0,0.00017571,2]
[374715709,1753426243318,-460.0,0.00017571,2]
[374715711,1753426243329,-460.0,0.00017571,2]
[374715713,1753426243339,-460.0,0.00017571,2]
[374715715,1753426243348,-460.0,0.00017571,2]
[374715717,1753426243358,-460.0,0.00017571,2]
[374715719,1753426243369,-460.0,0.00017573,2]
[374715721,1753426243379,-460.0,0.00017573,2]
[374715723,1753426243389,-543.75434378,0.00017574,2]
[374715725,1753426243399,-463.86504572,0.00017574,2]
[374715727,1753426243408,-460.0,0.00017574,2]
[374715729,1753426243419,-460.0,0.00017574,2]
[374715731,1753426243428,-460.0,0.00017574,2]
[374715733,1753426243438,-460.0,0.00017574,2]
[374715735,1753426243447,-460.0,0.00017574,2]
[374715737,1753426243457,-460.0,0.00017574,2]
[374715739,1753426243467,-460.0,0.00017574,2]
[374715741,1753426243476,-460.0,0.00017574,2]
[374715743,1753426243487,-460.0,0.00017574,2]
[374715745,1753426243497,-460.0,0.00017574,2]
[374715747,1753426243507,-460.0,0.00017574,2]
[374715749,1753426243516,-460.0,0.00017574,2]
[374715751,1753426243526,-460.0,0.00017574,2]
[374715753,1753426243535,-460.0,0.00017574,2]
[374715755,1753426243545,-460.0,0.00017574,2]
[374715757,1753426243555,-460.0,0.00017576,2]
[374715759,1753426243565,-460.0,0.00017576,2]
[374715761,1753426243574,-460.0,0.00017576,2]
[374715763,1753426243584,-460.0,0.00017576,2]
[374715765,1753426243593,-459.999999,0.00017576,2]
[374715767,1753426243603,-460.0,0.00017576,2]
[374715769,1753426243613,-460.0,0.00017576,2]
[374715771,1753426243622,-460.0,0.00017576,2]
[374715773,1753426243632,-460.0,0.00017576,2]
[374715775,1753426243642,-460.0,0.00017576,2]
[374715777,1753426243651,-460.0,0.00017576,2]
[374715779,1753426243661,-508.86353731,0.00017576,2]
[374715781,1753426243671,-460.0,0.00017576,2]
[374715783,1753426243681,-460.0,0.00017576,2]
[374715785,1753426243690,-460.0,0.00017576,2]
[374715787,1753426243701,-500.0,0.00017578,2]
[374715789,1753426243711,-392.00773144,0.00017578,2]
[374715791,1753426243720,-500.0,0.00017578,2]
[374715793,1753426243730,-460.0,0.00017578,2]
[374715795,1753426243742,-460.0,0.00017578,2]
[374715797,1753426243751,-460.0,0.00017578,2]
[374715799,1753426243761,-460.0,0.00017578,2]
[374715801,1753426243770,-460.0,0.00017579,2]
[374715803,1753426243782,-460.0,0.00017579,2]
[374715805,1753426243792,-552.62,0.0001758,2]
[374715807,1753426243802,-460.0,0.0001758,2]
[374715809,1753426243812,-460.0,0.0001758,2]
[374715811,1753426243822,-274.02,0.0001758,2]
[374715813,1753426243832,-460.0,0.0001758,2]
[374715815,1753426243842,-11926.69947069,0.00017732,2]
[374715817,1753426243852,-460.0,0.00017845,2]
[374715819,1753426243861,-488.74,0.00017845,2]
[374715821,1753426243875,-460.0,0.00017845,2]
[374715823,1753426243885,-460.0,0.00017845,2]
[374715825,1753426243894,-218.29547107,0.00017845,2]
[374715827,1753426243904,-460.0,0.00017848,2]
[374715829,1753426243914,-460.0,0.00017848,2]
[374715831,1753426243924,-460.0,0.00017848,2]
[374715833,1753426243934,-460.0,0.00017848,2]
[374715835,1753426243943,-460.0,0.00017848,2]
[374715837,1753426243952,-247.9,0.00017848,2]
[374715839,1753426243962,-460.0,0.00017848,2]
[374715841,1753426243972,-460.0,0.00017848,2]
[374715843,1753426243982,-467.28,0.0001785,2]
[374715845,1753426243992,-479.99,0.0001785,2]
[374715848,1753426244002,-460.0,0.0001785,2]
[374715849,1753426244011,-460.0,0.0001785,2]
[374715852,1753426244022,-214.3,0.0001785,2]
[374715854,1753426244031,-460.0,0.0001785,2]
[374715856,1753426244041,-460.0,0.00017852,2]
[374715858,1753426244050,-460.0,0.00017852,2]
[374715859,1753426244060,-460.0,0.00017852,2]
[374715861,1753426244069,-460.0,0.00017853,2]
[374715863,1753426244079,-460.0,0.00017853,2]
[374715865,1753426244089,-460.0,0.00017854,2]
[374715867,1753426244099,-1749.09635614,0.000179,2]
[374715869,1753426244108,-478.13,0.00018119,2]
[374715872,1753426244118,-460.0,0.00018119,2]
[374715873,1753426244127,-460.0,0.00018119,2]
[374715875,1753426244137,-460.0,0.00018122,2]
[374715877,1753426244147,-460.0,0.00018122,2]
[374715879,1753426244156,-460.0,0.00018122,2]
[374715882,1753426244165,-460.0,0.00018122,2]
[374715883,1753426244175,-460.0,0.00018122,2]
[374715885,1753426244184,-460.0,0.00018122,2]
[374715887,1753426244194,-460.0,0.00018122,2]
[374715889,1753426244203,-151.642969,0.00018124,2]
[374715892,1753426244213,-151.0,0.00018124,2]
[374715893,1753426244222,-460.0,0.00018126,2]
[374715895,1753426244232,-577.64901257,0.00018126,2]
[374715897,1753426244242,-277.3,0.00018126,2]
[374715899,1753426244252,-460.0,0.00018127,2]
[374715901,1753426244261,-460.0,0.00018127,2]
[374715903,1753426244270,-494.19244847,0.00018128,2]
[374715905,1753426244280,-1749.0963561,0.00018176,2]
[374715907,1753426244289,-234.90249478,0.00018204,2]
[374715910,1753426244300,-4100.3758528,0.00018292,2]
[374715912,1753426244310,-1856.6,0.00018392,3]
[374715913,1753426244320,-928.3,0.00018392,3]
[374715916,1753426244330,-464.16,0.00018392,3]
[374715917,1753426244340,-460.0,0.00018393,2]
[374715919,1753426244349,-460.0,0.00018393,2]
[374715921,1753426244359,-460.0,0.00018396,2]
[374715923,1753426244368,-460.0,0.00018396,2]
[374715925,1753426244378,-460.0,0.00018396,2]
[374715928,1753426244387,-159.47,0.00018396,2]
[374715929,1753426244404,-573.59,0.00018396,2]
[374715931,1753426244413,-155.790087,0.00018396,2]
[374715933,1753426244423,-151.0,0.00018396,2]
[374715935,1753426244432,-460.0,0.00018396,2]
[374715937,1753426244441,-460.0,0.00018396,2]
[374715939,1753426244451,-460.0,0.000184,2]
[374715941,1753426244460,-460.0,0.00018401,2]
[374715955,1753426244576,-460.0,0.00018401,2]
[374715957,1753426244587,-1749.0963561,0.00018452,2]
[374715959,1753426244597,-500.0,0.00018575,2]
[374715961,1753426244606,-500.0,0.00018575,2]
[374715963,1753426244616,-5723.65788145,0.00018576,2]
[374715965,1753426244625,-420.0,0.0001859,2]
[374715967,1753426244634,-300.0,0.0001859,2]
[374715969,1753426244644,-236.0,0.0001859,2]
[374715971,1753426244654,-688.83278895,0.00018593,2]
[374715973,1753426244663,-460.0,0.00018667,2]
[374715975,1753426244673,-460.0,0.0001867,2]
[374715977,1753426244682,-460.0,0.0001867,2]
[374715979,1753426244692,-511.98854704,0.0001867,2]
[374715981,1753426244701,-264.39591573,0.0001867,2]
[374715983,1753426244711,-460.0,0.0001867,2]
[374715985,1753426244720,-460.0,0.00018674,2]
[374715987,1753426244732,-557.8,0.00018675,2]
[374715989,1753426244742,-479.18790228,0.00018675,2]
[374715991,1753426244751,-479.52352393,0.00018675,2]
[374715993,1753426244761,-460.0,0.00018675,2]
[374715995,1753426244771,-460.0,0.00018675,2]
[374715997,1753426244780,-476.7142008,0.00018675,2]
[374715998,1753426244789,-460.0,0.00018675,2]
[374716000,1753426244799,-460.0,0.00018675,2]
[374716002,1753426244809,-540.0,0.00018675,2]
[374716004,1753426244818,-460.0,0.00018675,2]
[374716006,1753426244828,-460.0,0.00018675,2]
[374716008,1753426244837,-460.0,0.00018675,2]
[374716010,1753426244847,-460.0,0.00018675,2]
[374716012,1753426244859,-460.0,0.00018675,2]
[374716014,1753426244868,-460.0,0.00018675,2]
[374716017,1753426244878,-460.71272399,0.00018675,2]
[374716018,1753426244887,-460.0,0.00018675,2]
[374716020,1753426244896,-460.0,0.00018675,2]
[374716022,1753426244906,-460.0,0.00018675,2]
[374716025,1753426244917,-460.0,0.00018675,2]
[374716027,1753426244927,-460.0,0.00018675,2]
[374716029,1753426244937,-460.61801083,0.00018675,2]
[374716031,1753426244946,-460.27110641,0.00018675,2]
[374716033,1753426244957,-460.0,0.00018675,2]
[374716035,1753426244967,-460.0,0.00018675,2]
[374716037,1753426244976,-462.66533975,0.00018675,2]
[374716039,1753426244986,-460.0,0.00018675,2]
[374716041,1753426244998,-460.0,0.00018675,2]
[374716043,1753426245008,-460.0,0.00018675,2]
[374716045,1753426245018,-460.0,0.00018675,2]
[374716047,1753426245027,-1200.0,0.00018682,2]
[374716049,1753426245037,-1749.0963561,0.00018728,2]
[374716051,1753426245046,-194.0,0.00018795,3]
[374716053,1753426245056,-1593.33560222,0.000189,2]
[374716055,1753426245066,-460.0,0.00018941,2]
[374716057,1753426245075,-460.0,0.00018944,2]
[374716059,1753426245084,-460.0,0.00018944,2]
[374716061,1753426245094,-460.0,0.00018944,2]
[374716063,1753426245103,-460.0,0.00018948,2]
[374716065,1753426245113,-460.0,0.00018949,2]
[374716067,1753426245122,-460.0,0.00018949,2]
[374716069,1753426245132,-460.0,0.00018949,2]
[374716071,1753426245142,-460.0,0.00018949,2]
[374716073,1753426245152,-460.0,0.00018949,2]
[374716075,1753426245171,-460.0,0.00018949,2]
[374716077,1753426245181,-460.0,0.00018949,2]
[374716079,1753426245190,-460.0,0.00018949,2]
[374716081,1753426245199,-460.0,0.00018949,2]
[374716083,1753426245209,-151.0,0.00018951,2]
[374716085,1753426245218,-151.0,0.00018951,2]
[374716087,1753426245228,-151.0,0.00018951,2]
[374716089,1753426245237,-151.0,0.00018951,2]
[374716090,1753426245249,-151.0,0.00018951,2]
[374716092,1753426245259,-170.470712,0.00018951,2]
[374716094,1753426245268,-160.0,0.0001897,2]
[374716097,1753426245278,-1749.0963561,0.00019003,2]
[374716099,1753426245288,-228.098356,0.00019141,2]
[374716101,1753426245298,-151.453431,0.00019141,2]
[374716103,1753426245308,-151.0,0.00019141,2]
[374716105,1753426245318,-151.0,0.00019141,2]
[374716107,1753426245327,-151.0,0.00019141,2]
[374716109,1753426245338,-196.44169,0.00019178,2]
[374716111,1753426245347,-460.0,0.00019215,2]
[374716113,1753426245356,-460.0,0.00019218,2]
[374716115,1753426245367,-460.0,0.00019218,2]
[374716117,1753426245376,-460.0,0.00019218,2]
[374716118,1753426245384,-294.24540514,0.00019222,2]
[374716119,1753426245394,-460.0,0.00019223,2]
[374716120,1753426245403,-460.0,0.00019223,2]
[374716121,1753426245415,-1749.0963561,0.00019279,2]
[374716122,1753426245425,-214.7599002,0.00019282,2]
[374716123,1753426245434,-12627.2413641,0.00019282,2]
[374716124,1753426245444,-151.0,0.00019282,2]
[374716125,1753426245454,-1868.00961745,0.00019283,2]
[374716126,1753426245464,-500.0,0.00019286,2]
[374716127,1753426245480,-500.0,0.00019286,2]
[374716128,1753426245501,-526.33361954,0.00019289,2]
[374716129,1753426245519,-160.0,0.00019289,2]
[374716130,1753426245533,-215.93003454,0.00019289,2]
[374716131,1753426245543,-160.0,0.00019289,2]
[374716132,1753426245554,-476.88235691,0.00019289,2]
[374716133,1753426245563,-22399.71534964,0.00019329,2]
[374716134,1753426245578,-508.39,0.00019389,2]
[374716138,1753426245595,-301.095119,0.00019389,2]
[374716140,1753426245604,-234.90249478,0.00019483,2]
[374716142,1753426245614,-460.0,0.00019489,2]
[374716144,1753426245623,-460.0,0.00019492,2]
[374716146,1753426245632,-460.0,0.00019492,2]
[374716148,1753426245642,-460.0,0.00019492,2]
[374716150,1753426245652,-460.0,0.00019497,2]
[374716152,1753426245662,-260.0,0.00019518,2]
[374716155,1753426245671,-1749.0963561,0.00019555,2]
[374716157,1753426245681,-460.0,0.00019763,2]
[374716159,1753426245690,-349.55,0.00019766,2]
[374716161,1753426245699,-460.0,0.00019766,2]
[374716163,1753426245709,-460.0,0.00019766,2]
[374716166,1753426245719,-460.0,0.00019771,2]
[374716168,1753426245728,-1749.0963561,0.00019831,2]
[374716170,1753426245741,-500.0,0.00019999,2]
[374716172,1753426245750,-580.0,0.00019999,2]
[374716174,1753426245759,-500.0,0.00019999,2]
[374716176,1753426245769,-298.04,0.00019999,2]
[374716178,1753426245779,-221.8317617,0.0002,2]
[374716180,1753426245788,-4899.06741502,0.0002,2]
[374716182,1753426245798,-4971.12563609,0.0002,2]
[374716184,1753426245807,-16000.0,0.0002,2]
[374716187,1753426245818,-35866.77406443,0.0002,2]
[374716188,1753426245827,-15620.20084894,0.0002,2]
[374716189,1753426245837,-20549.33368775,0.0002,2]
[374716190,1753426245847,-151.0,0.0002,2]
[374716191,1753426245856,-151.36556,0.0002,2]
[374716192,1753426245866,-151.0,0.0002,2]
[374716193,1753426245876,-151.0,0.0002,2]
[374716194,1753426245885,-151.0,0.0002,2]
[374716195,1753426245895,-151.0,0.0002,2]
[374716196,1753426245905,-151.0,0.0002,2]
[374716197,1753426245915,-151.0,0.0002,2]
[374716198,1753426245924,-151.0,0.0002,2]
[374716199,1753426245934,-151.0,0.0002,2]
[374716200,1753426245944,-250.0,0.00020034,2]
[374716201,1753426245954,-460.0,0.00020037,2]
[374716202,1753426245964,-460.0,0.0002004,2]
[374716203,1753426245974,-519.91,0.0002004,2]
[374716204,1753426245983,-460.0,0.00020045,2]
[374716205,1753426245994,-151.724833,0.00020047,2]
[374716206,1753426246003,-151.0,0.00020047,2]
[374716207,1753426246013,-151.0,0.00020047,2]
[374716208,1753426246023,-162.656309,0.00020047,2]
[374716209,1753426246032,-237.497984,0.00020047,2]
[374716210,1753426246042,-162.656309,0.00020047,2]
[374716211,1753426246051,-411.166702,0.00020047,2]
[374716212,1753426246061,-411.166702,0.00020047,2]
[374716213,1753426246071,-403.717311,0.00020047,2]
[374716214,1753426246080,-403.717311,0.00020047,2]
[374716215,1753426246090,-360.0,0.00020066,2]
[374716216,1753426246099,-340.4,0.000201,2]
[374716218,1753426246109,-1749.0963561,0.00020107,2]
[374716220,1753426246119,-610.724301,0.00020187,2]
[374716221,1753426246128,-371.2,0.00020237,3]
[374716222,1753426246138,-587.0,0.00020304,2]
[374716223,1753426246148,-460.0,0.00020311,2]
[374716224,1753426246158,-1016.78,0.00020312,2]
[374716225,1753426246168,-460.0,0.00020314,2]
[374716226,1753426246178,-460.0,0.00020319,2]
[374716228,1753426246188,-1749.0963561,0.00020383,3]
[374716230,1753426246198,-4000.0,0.00020388,2]
[374716231,1753426246208,-577.7720337,0.00020411,2]
[374716232,1753426246218,-577.7720337,0.00020411,2]
[374716233,1753426246227,-577.7720337,0.00020411,2]
[374716234,1753426246237,-577.7720337,0.00020411,2]
[374716235,1753426246248,-577.7720337,0.00020411,2]
[374716236,1753426246258,-577.7720337,0.00020411,2]
[374716237,1753426246267,-577.7720337,0.00020411,2]
[374716238,1753426246277,-577.7720337,0.00020411,2]
[374716239,1753426246286,-1868.00961745,0.00020437,2]
[374716240,1753426246296,-151.0,0.00020458,2]
[374716242,1753426246305,-151.0,0.00020458,2]
[374716244,1753426246315,-151.0,0.00020458,2]
[374716245,1753426246325,-197.961221,0.00020458,2]
[374716247,1753426246335,-197.961221,0.00020458,2]
[374716249,1753426246344,-151.0,0.00020458,2]
[374716251,1753426246354,-151.0,0.00020458,2]
[374716253,1753426246364,-151.0,0.00020458,2]
[374716257,1753426246383,-151.0,0.00020458,2]
[374716259,1753426246395,-151.0,0.00020458,2]
[374716261,1753426246405,-151.0,0.00020458,2]
[374716263,1753426246415,-151.0,0.00020458,2]
[374716265,1753426246425,-151.0,0.00020458,2]
[374716267,1753426246435,-151.0,0.00020458,2]
[374716269,1753426246446,-151.0,0.00020458,2]
[374716271,1753426246456,-151.0,0.00020458,2]
[374716273,1753426246465,-151.0,0.00020458,2]
[374716275,1753426246475,-151.0,0.00020458,2]
[374716277,1753426246485,-188.53153785,0.00020458,2]
[374716280,1753426246497,-215.0738,0.00020458,2]
[374716281,1753426246507,-25000.0,0.00020458,2]
[374716284,1753426246517,-3801.642,0.00020458,2]
[374716286,1753426246527,-20491.78673072,0.00020458,2]
[374716288,1753426246537,-152.66102713,0.00020458,2]
[374716290,1753426246547,-154.61743017,0.00020458,2]
[374716292,1753426246556,-6000.0,0.00020468,2]
[374716294,1753426246566,-9301.73776194,0.000205,2]
[374716296,1753426246576,-151.664092,0.000205,2]
[374716298,1753426246586,-151.0,0.000205,2]
[374716300,1753426246596,-162.656309,0.000205,2]
[374716302,1753426246606,-162.656309,0.000205,2]
[374716304,1753426246616,-411.166702,0.000205,2]
[374716306,1753426246625,-411.166702,0.000205,2]
[374716308,1753426246635,-403.717311,0.000205,2]
[374716310,1753426246644,-403.717311,0.000205,2]
[374716312,1753426246654,-3942.302754,0.00020513,2]
[374716314,1753426246663,-151.0,0.00020547,2]
[374716316,1753426246673,-151.0,0.00020547,2]
[374716318,1753426246682,-151.0,0.00020547,2]
[374716320,1753426246691,-151.0,0.00020547,2]
[374716322,1753426246700,-500.0,0.00020547,2]
[374716325,1753426246711,-500.0,0.00020547,2]
[374716326,1753426246720,-500.0,0.00020547,2]
[374716328,1753426246731,-500.0,0.00020547,2]
[374716331,1753426246744,-500.0,0.00020547,2]
[374716333,1753426246754,-500.0,0.00020547,2]
[374716335,1753426246763,-500.0,0.00020547,2]
[374716337,1753426246772,-576.26,0.00020547,2]
[374716339,1753426246783,-151.0,0.00020547,2]
[374716340,1753426246792,-151.0,0.00020547,2]
[374716342,1753426246802,-151.0,0.00020547,2]
[374716345,1753426246813,-151.0,0.00020547,2]
[374716347,1753426246823,-363.164374,0.00020547,2]
[374716349,1753426246832,-363.164374,0.00020547,2]
[374716351,1753426246841,-2491.87592197,0.00020568,2]
[374716354,1753426246860,-1596.29203393,0.00020568,2]
[374716356,1753426246868,-460.0,0.00020585,2]
[374716358,1753426246878,-460.0,0.00020588,2]
[374716360,1753426246888,-460.0,0.00020593,2]
[374716362,1753426246897,-700.0,0.00020607,2]
[374716364,1753426246906,-460.0,0.00020614,2]
[374716366,1753426246916,-4239.43017027,0.00020623,2]
[374716368,1753426246926,-1749.0963561,0.00020659,3]
[374716370,1753426246935,-4000.0,0.00020721,2]
[374716372,1753426246945,-234.90249478,0.00020763,2]
[374716373,1753426246955,-371.2,0.00020769,4]
[374716376,1753426246965,-4000.0,0.00020786,2]
[374716378,1753426246975,-460.0,0.00020859,2]
[374716380,1753426246985,-195.14,0.00020862,2]
[374716382,1753426246996,-460.0,0.00020867,2]
[374716384,1753426247006,-1749.0963561,0.00020934,4]
[374716386,1753426247019,-178.674,0.00021,2]
[374716388,1753426247029,-1486.957,0.00021,2]
[374716390,1753426247039,-153.554281,0.00021006,2]
[374716392,1753426247048,-151.0,0.00021006,2]
[374716394,1753426247058,-151.0,0.00021006,2]
[374716397,1753426247068,-151.0,0.00021006,2]
[374716399,1753426247078,-197.961221,0.00021006,2]
[374716401,1753426247087,-197.961221,0.00021006,2]
[374716403,1753426247097,-151.0,0.00021006,2]
[374716405,1753426247107,-162.656309,0.00021006,2]
[374716406,1753426247116,-162.656309,0.00021006,2]
[374716409,1753426247127,-411.166702,0.00021006,2]
[374716410,1753426247136,-411.166702,0.00021006,2]
[374716413,1753426247146,-403.717311,0.00021006,2]
[374716415,1753426247156,-403.717311,0.00021006,2]